fUSD/lending_fUSD_20240521
["ID","MTS","AMOUNT","RATE_DAILY","PERIOD"]
[327608941,1716251466680,-2906.3,0.00038904,6]
[327608942,1716251466689,-2336.63,0.00038904,6]
[327608943,1716251466698,-636.09,0.00038904,6]
[327608944,1716251466707,-987.99,0.00038904,6]
[327608945,1716251466716,-500.0,0.00038904,6]
[327608946,1716251466725,-1461.94,0.00038904,6]
[327608947,1716251466734,-3165.26,0.00038904,6]
[327608948,1716251466743,-500.0,0.00038904,6]
[327608949,1716251466752,-500.0,0.00038904,6]
[327608950,1716251466761,-886.698867,0.00038904,14]
[327608951,1716251466770,-886.698867,0.00038904,14]
[327608952,1716251466779,-3423.45,0.00038904,6]
[327608953,1716251466789,-2131.25,0.00038904,6]
[327608954,1716251466798,-500.0,0.00038904,6]
[327608955,1716251466807,-960.07,0.00038904,6]
[327608956,1716251466816,-5782.82,0.00038904,6]
[327608957,1716251466825,-151.0,0.00038904,14]
[327608958,1716251466835,-886.698867,0.00038904,14]
[327608959,1716251466845,-151.0,0.00038904,14]
[327608960,1716251466855,-886.698867,0.00038904,14]
[327608961,1716251466865,-953.4,0.00038904,6]
[327608962,1716251466875,-118.93774209,0.00038904,6]
[327608963,1716251468055,-500.0,0.00038356,6]
[327608964,1716251468065,-500.0,0.00038356,6]
[327608965,1716251468075,-500.0,0.00038356,6]
[327608966,1716251468084,-500.0,0.00038356,6]
[327608967,1716251468094,-728.8,0.0003863,6]
[327608968,1716251468104,-500.0,0.0003863,6]
[327608969,1716251468114,-500.0,0.0003863,6]
[327608970,1716251468124,-500.0,0.0003863,6]
[327608971,1716251468134,-460.27225791,0.00038904,6]
[327608972,1716251468144,-1094.99,0.00038904,6]
[327608973,1716251468153,-500.0,0.00038904,6]
[327608974,1716251468163,-500.0,0.00038904,6]
[327608975,1716251468172,-1576.43,0.00038904,6]
[327608976,1716251468183,-1295.25,0.00038904,6]
[327608977,1716251468192,-4989.71,0.00038904,6]
[327608978,1716251468201,-2086.05,0.00038904,6]
[327608979,1716251468211,-1653.34,0.00038904,6]
[327608980,1716251468220,-2412.79,0.00038904,6]
[327608981,1716251468229,-500.0,0.00038904,6]
[327608982,1716251468239,-500.0,0.00038904,6]
[327608983,1716251468248,-500.0,0.00038904,6]
[327608984,1716251468269,-500.0,0.00038904,6]
[327608985,1716251468280,-1049.87,0.00038904,6]
[327608986,1716251468290,-500.0,0.00038904,6]
[327608987,1716251468300,-2352.79,0.00038904,6]
[327608988,1716251468311,-6218.2,0.00038904,6]
[327608989,1716251468321,-500.0,0.00038904,6]
[327608990,1716251468331,-500.0,0.00038904,6]
[327608991,1716251468341,-500.0,0.00038904,6]
[327608992,1716251468352,-500.0,0.00038904,6]
[327608993,1716251468362,-520.26,0.00038904,6]
[327608994,1716251468372,-500.0,0.00038904,6]
[327608995,1716251468382,-534.64,0.00038904,6]
[327608996,1716251468392,-1569.14,0.00038904,6]
[327608997,1716251468402,-863.79,0.00038904,6]
[327608998,1716251468412,-2345.37,0.00038904,6]
[327608999,1716251468422,-3747.0,0.00038904,6]
[327609000,1716251468434,-3774.02,0.00038904,6]
[327609001,1716251468444,-1212.82,0.00038904,6]
[327609002,1716251468453,-500.0,0.00038904,6]
[327609003,1716251468463,-1022.64,0.00038904,6]
[327609004,1716251468473,-10146.12,0.00038904,6]
[327609005,1716251468483,-1053.61,0.00038904,6]
[327609006,1716251468493,-151.0,0.00038904,14]
[327609007,1716251468503,-151.0,0.00038904,14]
[327609008,1716251468514,-3132.38,0.00038904,6]
[327609009,1716251468524,-500.0,0.00038904,6]
[327609010,1716251468534,-815.41,0.00038904,6]
[327609011,1716251468544,-500.0,0.00038904,6]
[327609012,1716251468555,-1374.52228077,0.00038904,6]
[327609013,1716251468585,-687.92771923,0.00038904,6]
[327609014,1716251468597,-1425.55,0.00038904,6]
[327609015,1716251468608,-500.0,0.00038904,6]
[327609016,1716251468620,-1298.93495809,0.00038904,30]
[327609017,1716251468631,-500.0,0.00038904,6]
[327609018,1716251468641,-286.33467884,0.00038904,6]
[327609019,1716251468655,-236.86532116,0.00038904,6]
[327609020,1716251468666,-5655.32,0.00038904,6]
[327609021,1716251468676,-2780.83,0.00038904,6]
[327609022,1716251468688,-500.0,0.00038904,6]
[327609023,1716251468698,-1968.02,0.00038904,6]
[327609024,1716251468708,-500.0,0.00038904,6]
[327609025,1716251468718,-2488.85,0.00038904,6]
[327609026,1716251468727,-1973.17683794,0.00038904,6]
[327609027,1716251468803,-1175.26064,0.00038904,6]
[327609028,1716251468816,-763.51252206,0.00038904,6]
[327609029,1716251468826,-400.98651091,0.00038904,6]
[327609030,1716251468840,-99.01348909,0.00038904,6]
[327609031,1716251468850,-2811.7,0.00038904,6]
[327609032,1716251468860,-500.0,0.00038904,6]
[327609033,1716251468870,-870.87,0.00038904,6]
[327609034,1716251468880,-1067.47,0.00038904,6]
[327609035,1716251468890,-516.62,0.00038904,6]
[327609036,1716251468900,-500.0,0.00038904,6]
[327609037,1716251468917,-500.0,0.00038904,6]
[327609038,1716251468928,-553.85,0.00038904,6]
[327609039,1716251468939,-1323.2,0.00038904,6]
[327609040,1716251468948,-500.0,0.00038904,6]
[327609041,1716251468960,-822.28,0.00038904,6]
[327609042,1716251468970,-500.0,0.00038904,6]
[327609043,1716251468979,-551.69,0.00038904,6]
[327609044,1716251468989,-576.1,0.00038904,6]
[327609045,1716251468999,-3765.45,0.00038904,6]
[327609046,1716251469009,-1752.05,0.00038904,6]
[327609047,1716251469019,-2816.84,0.00038904,6]
[327609048,1716251469029,-3504.32,0.00038904,6]
[327609049,1716251469040,-4387.75,0.00038904,6]
[327609050,1716251469050,-908.42,0.00038904,6]
[327609051,1716251469060,-1285.91,0.00038904,6]
[327609052,1716251469070,-500.0,0.00038904,6]
[327609053,1716251469080,-500.0,0.00038904,6]
[327609054,1716251469091,-2306.59,0.00038904,6]
[327609055,1716251469101,-500.0,0.00038904,6]
[327609056,1716251469111,-627.67,0.00038904,6]
[327609057,1716251469121,-500.0,0.00038904,6]
[327609058,1716251469131,-728.8,0.00038904,6]
[327609059,1716251469141,-500.0,0.00038904,6]
[327609060,1716251469151,-358.16,0.00038904,6]
[327609061,1716251469160,-154.5,0.00038904,6]
[327609062,1716251469170,-150.0,0.00038909,2]
[327609063,1716251469182,-150.0,0.00038911,2]
[327609064,1716251469192,-150.0,0.0003892,2]
[327609065,1716251469202,-150.0,0.00038921,2]
[327609066,1716251469212,-150.0,0.00038923,2]
[327609067,1716251469222,-150.0,0.00038926,2]
[327609068,1716251469232,-150.0,0.00038927,2]
[327609069,1716251469241,-1500.0,0.00038929,2]
[327609070,1716251469251,-150.0,0.00038932,2]
[327609071,1716251469261,-150.0,0.00038935,2]
[327609072,1716251469271,-150.0,0.00038938,2]
[327609073,1716251469281,-150.0,0.00038946,2]
[327609074,1716251469291,-1727.66885119,0.00038953,12]
[327609075,1716251469301,-176.06453139,0.00038956,2]
[327609076,1716251469311,-150.0,0.00038959,2]
[327609077,1716251469321,-150.0,0.00038962,2]
[327609078,1716251469331,-150.0,0.00038976,2]
[327609079,1716251469340,-150.0,0.00038995,2]
[327609080,1716251469350,-20023.38476236,0.00039,2]
[327609081,1716251469360,-150.0,0.00039011,2]
[327609082,1716251469370,-300.0,0.0003902,2]
[327609083,1716251469379,-150.0,0.00039032,2]
[327609084,1716251469390,-150.0,0.00039036,2]
[327609085,1716251469400,-150.0,0.00039045,2]
[327609086,1716251469410,-150.0,0.0003906,2]
[327609087,1716251469420,-150.0,0.00039061,2]
[327609088,1716251469429,-150.0,0.00039061,2]
[327609089,1716251469440,-200.0,0.00039068,50]
[327609090,1716251469450,-150.0,0.00039071,2]
[327609091,1716251469460,-150.0,0.00039078,2]
[327609092,1716251469471,-150.0,0.00039088,2]
[327609093,1716251469481,-150.0,0.00039089,2]
[327609094,1716251469491,-459.70216097,0.00039091,2]
[327609095,1716251469501,-151.0,0.000391,14]
[327609096,1716251469510,-1727.66885119,0.00039127,12]
[327609097,1716251469520,-176.06453139,0.00039145,2]
[327609098,1716251469529,-150.0,0.0003917,2]
[327609099,1716251469539,-618.99919455,0.00039173,2]
[327609100,1716251469552,-1284.93795965,0.00039173,2]
[327609101,1716251469562,-7876.9561986,0.00039173,2]
[327609102,1716251469572,-208.07783315,0.00039177,2]
[327609103,1716251469581,-5870.43521357,0.00039177,2]
[327609104,1716251469591,-150.0,0.00039177,2]
[327609105,1716251469601,-500.0,0.00039178,6]
[327609106,1716251469610,-500.0,0.00039178,6]
[327609107,1716251469620,-500.0,0.00039178,6]
[327609108,1716251469629,-500.0,0.00039178,6]
[327609109,1716251469638,-550.85,0.00039178,6]
[327609110,1716251469648,-873.14,0.00039178,6]
[327609111,1716251469657,-520.78,0.00039178,6]
[327609112,1716251469667,-500.0,0.00039178,6]
[327609113,1716251469676,-500.0,0.00039178,6]
[327609114,1716251469687,-384.94,0.00039178,6]
[327609115,1716251469696,-982.49,0.00039178,6]
[327609116,1716251469706,-563.38,0.00039178,6]
[327609117,1716251469715,-500.0,0.00039178,6]
[327609118,1716251469724,-500.0,0.00039178,6]
[327609119,1716251469735,-650.8,0.00039178,6]
[327609120,1716251469744,-613.19,0.00039178,6]
[327609121,1716251469754,-314.92,0.00039178,6]
[327609122,1716251469763,-447.96225603,0.00039178,6]
[327609123,1716251469773,-500.0,0.00039178,6]
[327609124,1716251469782,-530.6,0.00039178,6]
[327609125,1716251469792,-127.4092661,0.00039178,6]
[327609126,1716251469805,-401.7707339,0.00039178,6]
[327609127,1716251469814,-588.88,0.00039178,6]
[327609128,1716251469823,-500.0,0.00039178,6]
[327609129,1716251469833,-500.0,0.00039178,6]
[327609130,1716251469842,-500.0,0.00039178,6]
[327609131,1716251469851,-550.19,0.00039178,6]
[327609132,1716251469860,-572.12,0.00039178,6]
[327609133,1716251469870,-500.0,0.00039178,6]
[327609134,1716251469879,-500.0,0.00039178,6]
[327609135,1716251469888,-679.64,0.00039178,6]
[327609136,1716251469898,-593.91,0.00039178,6]
[327609137,1716251469911,-539.97,0.00039178,6]
[327609138,1716251469921,-500.0,0.00039178,6]
[327609139,1716251469930,-500.0,0.00039178,6]
[327609140,1716251469940,-500.0,0.00039178,6]
[327609141,1716251469950,-500.0,0.00039178,6]
[327609142,1716251469959,-609.78,0.00039178,6]
[327609143,1716251469969,-500.0,0.00039178,6]
[327609144,1716251469978,-500.0,0.00039178,6]
[327609145,1716251469987,-442.88016562,0.00039178,6]
[327609146,1716251470001,-57.11983438,0.00039178,6]
[327609147,1716251470013,-500.0,0.00039178,6]
[327609148,1716251470022,-559.46608815,0.00039178,6]
[327609149,1716251470383,-500.0,0.00039178,6]
[327609150,1716251470407,-500.0,0.00039178,6]
[327609151,1716251470418,-500.0,0.00039178,6]
[327609152,1716251470427,-598.79,0.00039178,6]
[327609153,1716251470438,-50.82407747,0.00039178,6]
[327609154,1716251470466,-341.05170518,0.00038356,6]
[327609155,1716251470476,-659.82829456,0.00039178,6]
[327609156,1716251470488,-35.31762797,0.00039178,6]
[327609157,1716251470498,-500.0,0.00039178,6]
[327609158,1716251470507,-350.23781863,0.00039178,6]
[327609159,1716251470519,-149.76218137,0.00039178,6]
[327609160,1716251470528,-191.72163463,0.00039178,6]
[327609161,1716251470540,-308.27836537,0.00039178,6]
[327609162,1716251470550,-500.0,0.00039178,6]
[327609163,1716251470559,-500.0,0.00039178,6]
[327609164,1716251470569,-500.48,0.00039178,6]
[327609165,1716251470579,-500.0,0.00039178,6]
[327609166,1716251470589,-441.95249953,0.00039178,6]
[327609167,1716251470598,-500.0,0.00039178,6]
[327609168,1716251470608,-583.23,0.00039178,6]
[327609169,1716251470618,-500.0,0.00039178,6]
[327609170,1716251470628,-776.5,0.00039178,6]
[327609171,1716251470639,-500.0,0.00039178,6]
[327609172,1716251470649,-500.0,0.00039178,6]
[327609173,1716251470659,-500.0,0.00039178,6]
[327609174,1716251470668,-500.0,0.00039178,6]
[327609175,1716251470679,-500.0,0.00039178,6]
[327609176,1716251470690,-500.0,0.00039178,6]
[327609177,1716251470700,-500.0,0.00039178,6]
[327609178,1716251470709,-500.0,0.00039178,6]
[327609179,1716251470719,-500.0,0.00039178,6]
[327609180,1716251470729,-692.16,0.00039178,6]
[327609181,1716251470738,-510.26868003,0.00039178,6]
[327609182,1716251470747,-500.0,0.00039178,6]
[327609183,1716251470758,-755.29,0.00039178,6]
[327609184,1716251470767,-898.56,0.00039178,6]
[327609185,1716251470776,-443.98997322,0.00039178,6]
[327609186,1716251470789,-56.01002678,0.00039178,6]
[327609187,1716251470799,-500.0,0.00039178,6]
[327609188,1716251470808,-614.24,0.00039178,6]
[327609189,1716251470817,-500.0,0.00039178,6]
[327609190,1716251470825,-500.0,0.00039178,6]
[327609191,1716251470834,-685.07,0.00039178,6]
[327609192,1716251470843,-586.95,0.00039178,6]
[327609193,1716251470853,-500.0,0.00039178,6]
[327609194,1716251470863,-500.0,0.00039178,6]
[327609195,1716251470872,-500.0,0.00039178,6]
[327609196,1716251470882,-500.0,0.00039178,6]
[327609197,1716251470891,-160.55,0.00039178,6]
[327609198,1716251470900,-1113.15,0.00039178,6]
[327609199,1716251470914,-500.0,0.00039178,6]
[327609200,1716251470924,-500.0,0.00039178,6]
[327609201,1716251470934,-500.0,0.00039178,6]
[327609202,1716251470944,-500.0,0.00039178,6]
[327609203,1716251470954,-500.0,0.00039178,6]
[327609204,1716251470963,-725.38,0.00039178,6]
[327609205,1716251470972,-192.97646922,0.00039178,6]
[327609206,1716251470981,-617.75951552,0.00039178,6]
[327609207,1716251470992,-985.85,0.00039178,6]
[327609208,1716251471003,-500.0,0.00039178,6]
[327609209,1716251471012,-883.37,0.00039178,6]
[327609210,1716251471022,-500.0,0.00039178,6]
[327609211,1716251471032,-500.0,0.00039178,6]
[327609212,1716251471041,-500.0,0.00039178,6]
[327609213,1716251471050,-1548.91,0.00039178,6]
[327609214,1716251471059,-500.0,0.00039178,6]
[327609215,1716251471069,-1005.7,0.00039178,6]
[327609216,1716251471078,-571.34,0.00039178,6]
[327609217,1716251471088,-500.0,0.00039178,6]
[327609218,1716251471098,-846.43,0.00039178,6]
[327609219,1716251471107,-655.22,0.00039178,6]
[327609220,1716251471116,-568.99,0.00039178,6]
[327609221,1716251471126,-500.0,0.00039178,6]
[327609222,1716251471135,-500.0,0.00039178,6]
[327609223,1716251471145,-500.0,0.00039178,6]
[327609224,1716251471155,-507.9,0.00039178,6]
[327609225,1716251471164,-787.32,0.00039178,6]
[327609226,1716251471174,-500.0,0.00039178,6]
[327609227,1716251471184,-500.0,0.00039178,6]
[327609228,1716251471194,-500.0,0.00039178,6]
[327609229,1716251471204,-500.0,0.00039178,6]
[327609230,1716251471214,-888.88,0.00039178,6]
[327609231,1716251471223,-500.0,0.00039178,6]
[327609232,1716251471233,-668.03,0.00039178,6]
[327609233,1716251471242,-575.63,0.00039178,6]
[327609234,1716251471252,-1152.64,0.00039178,6]
[327609235,1716251471262,-584.66,0.00039178,6]
[327609236,1716251471272,-500.0,0.00039178,6]
[327609237,1716251471282,-500.0,0.00039178,6]
[327609238,1716251471291,-525.02,0.00039178,6]
[327609239,1716251471301,-500.0,0.00039178,6]
[327609240,1716251471311,-992.41,0.00039178,6]
[327609241,1716251471321,-500.0,0.00039178,6]
[327609242,1716251471334,-1163.35,0.00039178,6]
[327609243,1716251471344,-605.22394465,0.00039178,6]
[327609244,1716251471354,-686.58,0.00039178,6]
[327609245,1716251471364,-1053.14,0.00039178,6]
[327609246,1716251471374,-1185.54,0.00039178,6]
[327609247,1716251471383,-500.03,0.00039178,6]
[327609248,1716251471393,-500.0,0.00039178,6]
[327609249,1716251471403,-500.0,0.00039178,6]
[327609250,1716251471412,-500.0,0.00039178,6]
[327609251,1716251471422,-570.79484087,0.00039178,6]
[327609252,1716251471431,-500.0,0.00039178,6]
[327609253,1716251471442,-886.98,0.00039178,6]
[327609254,1716251471451,-1776.68,0.00039178,6]
[327609255,1716251471461,-300.0,0.00039178,6]
[327609256,1716251471470,-554.6,0.00039178,6]
[327609257,1716251471479,-1578.11,0.00039178,6]
[327609258,1716251471489,-500.0,0.00039178,6]
[327609259,1716251471498,-500.0,0.00039178,6]
[327609260,1716251471507,-500.0,0.00039178,6]
[327609261,1716251471517,-807.4,0.00039178,6]
[327609262,1716251471527,-500.0,0.00039178,6]
[327609263,1716251471536,-588.6,0.00039178,6]
[327609264,1716251471546,-1528.2,0.00039178,6]
[327609265,1716251471556,-522.33,0.00039178,6]
[327609266,1716251471565,-500.0,0.00039178,6]
[327609267,1716251471575,-576.74,0.00039178,6]
[327609268,1716251471585,-160.88021499,0.00039178,6]
[327609269,1716251471594,-500.0,0.00039178,6]
[327609270,1716251471604,-500.0,0.00039178,6]
[327609271,1716251471617,-500.0,0.00039178,6]
[327609272,1716251471627,-760.73,0.00039178,6]
[327609273,1716251471642,-823.2,0.00039178,6]
[327609274,1716251471652,-779.47,0.00039178,6]
[327609275,1716251471662,-500.0,0.00039178,6]
[327609276,1716251471673,-1646.98,0.00039178,6]
[327609277,1716251471684,-500.0,0.00039178,6]
[327609278,1716251471694,-542.07,0.00039178,6]
[327609279,1716251471703,-721.22,0.00039178,6]
[327609280,1716251471713,-730.1,0.00039178,6]
[327609281,1716251471727,-996.36,0.00039178,6]
[327609282,1716251471736,-688.74,0.00039178,6]
[327609283,1716251471746,-500.0,0.00039178,6]
[327609284,1716251471756,-500.0,0.00039178,6]
[327609285,1716251471766,-587.21,0.00039178,6]
[327609286,1716251471775,-500.0,0.00039178,6]
[327609287,1716251471785,-532.96,0.00039178,6]
[327609288,1716251471794,-644.66,0.00039178,6]
[327609289,1716251471804,-270.73666862,0.00039178,6]
[327609290,1716251471813,-1201.29,0.00039178,6]
[327609291,1716251471823,-565.18,0.00039178,6]
[327609292,1716251471832,-516.6,0.00039178,6]
[327609293,1716251471843,-500.0,0.00039178,6]
[327609294,1716251471853,-500.0,0.00039178,6]
[327609295,1716251471862,-500.0,0.00039178,6]
[327609296,1716251471871,-500.0,0.00039178,6]
[327609297,1716251471881,-1308.76,0.00039178,6]
[327609298,1716251471891,-500.0,0.00039178,6]
[327609299,1716251471901,-602.65,0.00039178,6]
[327609300,1716251471913,-722.53,0.00039178,6]
[327609301,1716251471926,-500.0,0.00039178,6]
[327609302,1716251471937,-500.0,0.00039178,6]
[327609303,1716251471946,-500.0,0.00039178,6]
[327609304,1716251471956,-193.790957,0.00039178,14]
[327609305,1716251471965,-500.0,0.00039178,6]
[327609306,1716251471976,-500.0,0.00039178,6]
[327609307,1716251471985,-500.0,0.00039178,6]
[327609308,1716251471996,-998.36,0.00039178,6]
[327609309,1716251472007,-1126.64,0.00039178,6]
[327609310,1716251472017,-958.61,0.00039178,6]
[327609311,1716251472027,-500.0,0.00039178,6]
[327609312,1716251472037,-1031.96,0.00039178,6]
[327609313,1716251472047,-671.98,0.00039178,6]
[327609314,1716251472057,-504.37,0.00039178,6]
[327609315,1716251472066,-775.69,0.00039178,6]
[327609316,1716251472076,-1303.54,0.00039178,6]
[327609317,1716251472085,-885.34,0.00039178,6]
[327609318,1716251472095,-500.0,0.00039178,6]
[327609319,1716251472105,-536.64,0.00039178,6]
[327609320,1716251472115,-1526.67,0.00039178,6]
[327609321,1716251472124,-500.0,0.00039178,6]
[327609322,1716251472133,-500.0,0.00039178,6]
[327609323,1716251472143,-500.0,0.00039178,6]
[327609324,1716251472152,-1388.21,0.00039178,6]
[327609325,1716251472162,-1802.47,0.00039178,6]
[327609326,1716251472171,-2238.94,0.00039178,6]
[327609327,1716251472181,-1502.67,0.00039178,6]
[327609328,1716251472191,-658.19,0.00039178,6]
[327609329,1716251472201,-735.18,0.00039178,6]
[327609330,1716251472211,-500.0,0.00039178,6]
[327609331,1716251472220,-986.72,0.00039178,6]
[327609332,1716251472230,-730.65,0.00039178,6]
[327609333,1716251472239,-500.0,0.00039178,6]
[327609334,1716251472248,-1434.51,0.00039178,6]
[327609335,1716251472258,-500.0,0.00039178,6]
[327609336,1716251472268,-851.76,0.00039178,6]
[327609337,1716251472277,-1497.88,0.00039178,6]
[327609338,1716251472287,-500.0,0.00039178,6]
[327609339,1716251472296,-500.0,0.00039178,6]
[327609340,1716251472306,-1656.82,0.00039178,6]
[327609341,1716251472315,-500.0,0.00039178,6]
[327609342,1716251472325,-500.0,0.00039178,6]
[327609343,1716251472334,-807.85,0.00039178,6]
[327609344,1716251472344,-649.77,0.00039178,6]
[327609345,1716251472353,-1188.37,0.00039178,6]
[327609346,1716251472362,-500.0,0.00039178,6]
[327609347,1716251472371,-500.0,0.00039178,6]
[327609348,1716251472381,-1336.23,0.00039178,6]
[327609349,1716251472390,-500.0,0.00039178,6]
[327609350,1716251472399,-500.0,0.00039178,6]
[327609351,1716251472409,-2042.19,0.00039178,6]
[327609352,1716251472418,-892.06,0.00039178,6]
[327609353,1716251472428,-2088.96,0.00039178,6]
[327609354,1716251472438,-500.0,0.00039178,6]
[327609355,1716251472447,-937.98,0.00039178,6]
[327609356,1716251472456,-572.69,0.00039178,6]
[327609357,1716251472466,-500.0,0.00039178,6]
[327609358,1716251472475,-654.42,0.00039178,6]
[327609359,1716251472484,-1910.71,0.00039178,6]
[327609360,1716251472494,-500.0,0.00039178,6]
[327609361,1716251472503,-681.23,0.00039178,6]
[327609362,1716251472512,-1438.95,0.00039178,6]
[327609363,1716251472521,-968.35,0.00039178,6]
[327609364,1716251472531,-967.36,0.00039178,6]
[327609365,1716251472540,-500.0,0.00039178,6]
[327609366,1716251472549,-600.15,0.00039178,6]
[327609367,1716251472559,-500.0,0.00039178,6]
[327609368,1716251472568,-649.72,0.00039178,6]
[327609369,1716251472578,-500.0,0.00039178,6]
[327609370,1716251472588,-809.45,0.00039178,6]
[327609371,1716251472597,-710.23,0.00039178,6]
[327609372,1716251472607,-500.0,0.00039178,6]
[327609373,1716251472616,-407.16744337,0.00039178,6]
[327609374,1716251472625,-500.0,0.00039178,6]
[327609375,1716251472635,-971.53,0.00039178,6]
[327609376,1716251472644,-1455.65,0.00039178,6]
[327609377,1716251472654,-500.0,0.00039178,6]
[327609378,1716251472663,-197.378292,0.00039178,14]
[327609379,1716251472672,-500.0,0.00039178,6]
[327609380,1716251472681,-500.0,0.00039178,6]
[327609381,1716251472692,-500.0,0.00039178,6]
[327609382,1716251472702,-1460.36,0.00039178,6]
[327609383,1716251472712,-500.0,0.00039178,6]
[327609384,1716251472721,-906.12,0.00039178,6]
[327609385,1716251472731,-500.0,0.00039178,6]
[327609386,1716251472740,-529.44,0.00039178,6]
[327609387,1716251472749,-500.0,0.00039178,6]
[327609388,1716251472758,-1158.25,0.00039178,6]
[327609389,1716251472767,-1291.3,0.00039178,6]
[327609390,1716251472776,-700.25,0.00039178,6]
[327609391,1716251472852,-896.41,0.00039178,6]
[327609392,1716251472861,-500.0,0.00039178,6]
[327609393,1716251472871,-582.68,0.00039178,6]
[327609394,1716251472879,-546.0,0.00039178,6]
[327609395,1716251472888,-1477.52,0.00039178,6]
[327609396,1716251472897,-1653.59,0.00039178,6]
[327609397,1716251472911,-546.51,0.00039178,6]
[327609398,1716251472920,-547.65,0.00039178,6]
[327609399,1716251472929,-500.0,0.00039178,6]
[327609400,1716251472942,-1382.4,0.00039178,6]
[327609401,1716251472955,-1776.12,0.00039178,6]
[327609402,1716251472963,-1130.8,0.00039178,6]
[327609403,1716251472972,-2149.53,0.00039178,6]
[327609404,1716251472981,-500.0,0.00039178,6]
[327609405,1716251472991,-912.64,0.00039178,6]
[327609406,1716251473000,-500.0,0.00039178,6]
[327609407,1716251473010,-707.97,0.00039178,6]
[327609408,1716251473019,-1142.94,0.00039178,6]
[327609409,1716251473028,-1144.22,0.00039178,6]
[327609410,1716251473037,-956.51,0.00039178,6]
[327609411,1716251473047,-500.0,0.00039178,6]
[327609412,1716251473056,-784.66,0.00039178,6]
[327609413,1716251473065,-1101.32,0.00039178,6]
[327609414,1716251473074,-1306.12,0.00039178,6]
[327609415,1716251473084,-544.5964549,0.00039178,6]
[327609416,1716251473095,-1595.29,0.00039178,6]
[327609417,1716251473106,-500.0,0.00039178,6]
[327609418,1716251473115,-500.0,0.00039178,6]
[327609419,1716251473125,-500.0,0.00039178,6]
[327609420,1716251473135,-2693.99,0.00039178,6]
[327609421,1716251473145,-1019.25,0.00039178,6]
[327609422,1716251473156,-786.64,0.00039178,6]
[327609423,1716251473165,-1220.0,0.00039178,6]
[327609424,1716251473175,-500.0,0.00039178,6]
[327609425,1716251473185,-500.0,0.00039178,6]
[327609426,1716251473194,-2433.39,0.00039178,6]
[327609427,1716251473204,-500.0,0.00039178,6]
[327609428,1716251473213,-1192.5,0.00039178,6]
[327609429,1716251473222,-500.0,0.00039178,6]
[327609430,1716251473231,-575.34,0.00039178,6]
[327609431,1716251473240,-513.37,0.00039178,6]
[327609432,1716251473249,-757.38,0.00039178,6]
[327609433,1716251473259,-500.0,0.00039178,6]
[327609434,1716251473269,-515.97,0.00039178,6]
[327609435,1716251473279,-500.0,0.00039178,6]
[327609436,1716251473289,-500.0,0.00039178,6]
[327609437,1716251473298,-1093.46,0.00039178,6]
[327609438,1716251473309,-500.0,0.00039178,6]
[327609439,1716251473319,-500.0,0.00039178,6]
[327609440,1716251473329,-500.0,0.00039178,6]